[Event "*** SCC Grand Prix: Titled Tuesday Blitz"]
[Site "Chess.com"]
[Date "2020.08.04"]
[Round "3"]
[White "peixe64"]
[Black "MPGM"]
[Result "0-1"]
[WhiteElo "2312"]
[BlackElo "2544"]
[TimeControl "180+1"]
[EndTime "14:13:35 PDT"]
[Termination "MPGM won on time"]

1. e4 {[%clk 0:03:00.9]} 1... c6 {[%clk 0:02:58.9]} 2. d4 {[%clk 0:03:00.8]}
2... d5 {[%clk 0:02:58.6]} 3. Nc3 {[%clk 0:03:01.3]} 3... dxe4 {[%clk
0:02:57.3]} 4. Nxe4 {[%clk 0:03:02.2]} 4... Nf6 {[%clk 0:02:57.9]} 5. Nxf6+
{[%clk 0:02:59.7]} 5... exf6 {[%clk 0:02:58.8]} 6. c3 {[%clk 0:02:59.9]} 6...
Bd6 {[%clk 0:02:57.4]} 7. Bd3 {[%clk 0:02:59.9]} 7... O-O {[%clk 0:02:57]} 8.
Qc2 {[%clk 0:02:58.7]} 8... Re8+ {[%clk 0:02:57.1]} 9. Ne2 {[%clk 0:02:58]} 9...
h5 {[%clk 0:02:54.4]} 10. O-O {[%clk 0:02:53.3]} 10... h4 {[%clk 0:02:54.2]} 11.
h3 {[%clk 0:02:51]} 11... Nd7 {[%clk 0:02:52.9]} 12. Be3 {[%clk 0:02:32.7]}
12... Nf8 {[%clk 0:02:49.9]} 13. Rae1 {[%clk 0:02:28.1]} 13... Be6 {[%clk
0:02:40.4]} 14. c4 {[%clk 0:02:25.4]} 14... Qd7 {[%clk 0:02:29.6]} 15. Nc3
{[%clk 0:02:08.3]} 15... Ng6 {[%clk 0:02:21.7]} 16. Ne4 {[%clk 0:01:50.7]} 16...
Nf4 {[%clk 0:02:03]} 17. Nxd6 {[%clk 0:01:33.6]} 17... Qxd6 {[%clk 0:01:57.8]}
18. Bh7+ {[%clk 0:01:23.6]} 18... Kh8 {[%clk 0:01:49.9]} 19. Qe4 {[%clk
0:00:54.6]} 19... Bxc4 {[%clk 0:01:20.9]} 20. Bxf4 {[%clk 0:00:38.9]} 20... Rxe4
{[%clk 0:01:20.1]} 21. Bxd6 {[%clk 0:00:37.4]} 21... Rxd4 {[%clk 0:01:07]} 22.
Re4 {[%clk 0:00:17.2]} 22... Rxd6 {[%clk 0:00:54.4]} 23. Rxc4 {[%clk 0:00:16.6]}
23... Kxh7 {[%clk 0:00:54]} 24. Rxh4+ {[%clk 0:00:17.3]} 24... Kg8 {[%clk
0:00:52.8]} 25. Rb4 {[%clk 0:00:17.8]} 25... b6 {[%clk 0:00:51.3]} 26. Re1
{[%clk 0:00:18.2]} 26... Kf8 {[%clk 0:00:50.9]} 27. Rbe4 {[%clk 0:00:16.5]}
27... Rd7 {[%clk 0:00:50.6]} 28. Rc4 {[%clk 0:00:15.9]} 28... c5 {[%clk
0:00:49.7]} 29. b4 {[%clk 0:00:16.3]} 29... cxb4 {[%clk 0:00:49.8]} 30. Rxb4
{[%clk 0:00:16.5]} 30... Rc8 {[%clk 0:00:48.7]} 31. a4 {[%clk 0:00:16.2]} 31...
g6 {[%clk 0:00:43.9]} 32. g3 {[%clk 0:00:15.7]} 32... f5 {[%clk 0:00:42.1]} 33.
Kg2 {[%clk 0:00:16.2]} 33... Rc5 {[%clk 0:00:40.1]} 34. Re2 {[%clk 0:00:16]}
34... Kg7 {[%clk 0:00:29.6]} 35. h4 {[%clk 0:00:16.3]} 35... Kf6 {[%clk
0:00:28.7]} 36. Ra2 {[%clk 0:00:14.7]} 36... Rdd5 {[%clk 0:00:28.1]} 37. Re2
{[%clk 0:00:13.4]} 37... Ra5 {[%clk 0:00:27.7]} 38. Rf4 {[%clk 0:00:12]} 38...
Rd3 {[%clk 0:00:24.5]} 39. Rc4 {[%clk 0:00:09.3]} 39... Rc5 {[%clk 0:00:20.6]}
40. Rxc5 {[%clk 0:00:07.9]} 40... bxc5 {[%clk 0:00:21.5]} 41. Rc2 {[%clk
0:00:07.9]} 41... Rd5 {[%clk 0:00:21.7]} 42. Kf3 {[%clk 0:00:07.6]} 42... Ke5
{[%clk 0:00:20.7]} 43. Rb2 {[%clk 0:00:08.2]} 43... c4 {[%clk 0:00:18.9]} 44.
Ke3 {[%clk 0:00:06.5]} 44... Rd3+ {[%clk 0:00:18.4]} 45. Ke2 {[%clk 0:00:06.7]}
45... Rb3 {[%clk 0:00:18.1]} 46. Rc2 {[%clk 0:00:07.1]} 46... Kd4 {[%clk
0:00:17.9]} 47. Ra2 {[%clk 0:00:05.6]} 47... c3 {[%clk 0:00:17.7]} 48. Rc2
{[%clk 0:00:03.9]} 48... Rb2 {[%clk 0:00:17.7]} 49. Kd1 {[%clk 0:00:04.6]} 49...
Kd3 {[%clk 0:00:17.6]} 50. Rc1 {[%clk 0:00:02.3]} 50... Rxf2 {[%clk 0:00:18.1]}
51. Ke1 {[%clk 0:00:02.5]} 51... Rh2 {[%clk 0:00:17.6]} 52. Rd1+ {[%clk
0:00:03.2]} 52... Ke3 {[%clk 0:00:17.6]} 0-1

[Event "*** SCC Grand Prix: Titled Tuesday Blitz"]
[Site "Chess.com"]
[Date "2020.08.04"]
[Round "3"]
[White "mortngabriel"]
[Black "Vadim_Biliy"]
[Result "1-0"]
[WhiteElo "2431"]
[BlackElo "2238"]
[TimeControl "180+1"]
[EndTime "14:13:37 PDT"]
[Termination "mortngabriel won by resignation"]

1. Nf3 {[%clk 0:03:00.9]} 1... d5 {[%clk 0:02:59.1]} 2. c4 {[%clk 0:02:59.5]}
2... e6 {[%clk 0:02:59.5]} 3. e3 {[%clk 0:02:57.1]} 3... Nf6 {[%clk 0:02:59.9]}
4. b3 {[%clk 0:02:55.7]} 4... Be7 {[%clk 0:03:00]} 5. Bb2 {[%clk 0:02:55.4]}
5... O-O {[%clk 0:03:00.5]} 6. Nc3 {[%clk 0:02:55.9]} 6... c5 {[%clk 0:03:00.2]}
7. cxd5 {[%clk 0:02:56.5]} 7... Nxd5 {[%clk 0:02:59.6]} 8. Nxd5 {[%clk
0:02:56.6]} 8... Qxd5 {[%clk 0:02:56.8]} 9. Bc4 {[%clk 0:02:56.3]} 9... Qd8
{[%clk 0:02:51.5]} 10. O-O {[%clk 0:02:55.5]} 10... a6 {[%clk 0:02:48.9]} 11.
Rc1 {[%clk 0:02:46.2]} 11... b5 {[%clk 0:02:47.8]} 12. Be2 {[%clk 0:02:45.8]}
12... Bb7 {[%clk 0:02:48.3]} 13. d4 {[%clk 0:02:43.1]} 13... Nd7 {[%clk
0:02:40.6]} 14. Qc2 {[%clk 0:02:32.7]} 14... Rc8 {[%clk 0:02:36.5]} 15. Qb1
{[%clk 0:02:32.7]} 15... Nf6 {[%clk 0:02:25]} 16. Rfd1 {[%clk 0:02:31.6]} 16...
Qb6 {[%clk 0:02:11.9]} 17. dxc5 {[%clk 0:02:24.1]} 17... Rxc5 {[%clk 0:02:01.1]}
18. Bd4 {[%clk 0:02:20.3]} 18... Rxc1 {[%clk 0:02:00.4]} 19. Rxc1 {[%clk
0:02:21.2]} 19... Qd8 {[%clk 0:01:54.7]} 20. Ne5 {[%clk 0:02:16]} 20... Qa8
{[%clk 0:01:48.5]} 21. f3 {[%clk 0:02:03.2]} 21... Rc8 {[%clk 0:01:45.8]} 22. e4
{[%clk 0:01:52.1]} 22... h6 {[%clk 0:01:41.5]} 23. Rc2 {[%clk 0:01:35.8]} 23...
Rxc2 {[%clk 0:01:35.5]} 24. Qxc2 {[%clk 0:01:35.3]} 24... Qc8 {[%clk 0:01:35.4]}
25. Qxc8+ {[%clk 0:01:34.4]} 25... Bxc8 {[%clk 0:01:35.4]} 26. Nc6 {[%clk
0:01:35.3]} 26... Kf8 {[%clk 0:01:26.3]} 27. Nxe7 {[%clk 0:01:31.7]} 27... Kxe7
{[%clk 0:01:25.8]} 28. Kf2 {[%clk 0:01:30.3]} 28... Ne8 {[%clk 0:01:20]} 29. a4
{[%clk 0:01:26.6]} 29... bxa4 {[%clk 0:01:17.6]} 30. bxa4 {[%clk 0:01:27.5]}
30... f6 {[%clk 0:01:17.6]} 31. e5 {[%clk 0:01:24.7]} 31... fxe5 {[%clk
0:01:03.8]} 32. Bxe5 {[%clk 0:01:24]} 32... Nf6 {[%clk 0:01:04.3]} 33. Ke3
{[%clk 0:01:20.6]} 33... Kd7 {[%clk 0:01:01.6]} 34. Kd4 {[%clk 0:01:19.3]} 34...
Kc6 {[%clk 0:01:01.6]} 35. Bc4 {[%clk 0:01:12.2]} 35... Bd7 {[%clk 0:00:53.4]}
36. Bxa6 {[%clk 0:01:02.9]} 36... Kb6 {[%clk 0:00:52.3]} 37. Bc4 {[%clk
0:01:01.5]} 37... Bxa4 {[%clk 0:00:38.2]} 38. Bxe6 {[%clk 0:00:56.6]} 38... Kc6
{[%clk 0:00:30.4]} 39. h4 {[%clk 0:00:41.5]} 39... Bb5 {[%clk 0:00:29.5]} 40. g4
{[%clk 0:00:30.8]} 40... Be2 {[%clk 0:00:28.2]} 41. g5 {[%clk 0:00:27.9]} 41...
hxg5 {[%clk 0:00:26.9]} 42. hxg5 {[%clk 0:00:27.9]} 42... Ne8 {[%clk 0:00:26.6]}
43. f4 {[%clk 0:00:26.3]} 43... Bh5 {[%clk 0:00:19.2]} 44. Bd5+ {[%clk
0:00:24.6]} 44... Kd7 {[%clk 0:00:18.3]} 45. f5 {[%clk 0:00:21.5]} 45... Ke7
{[%clk 0:00:16.6]} 46. Bc6 {[%clk 0:00:19.1]} 46... Bg4 {[%clk 0:00:15]} 47. Ke4
{[%clk 0:00:17.4]} 47... Nd6+ {[%clk 0:00:11.8]} 48. Kf4 {[%clk 0:00:14.4]}
48... Bxf5 {[%clk 0:00:07.9]} 49. Bxd6+ {[%clk 0:00:14]} 49... Kxd6 {[%clk
0:00:08.2]} 50. Kxf5 {[%clk 0:00:14.9]} 50... Kxc6 {[%clk 0:00:08.4]} 51. Kg6
{[%clk 0:00:15.4]} 51... Kd6 {[%clk 0:00:07.8]} 52. Kxg7 {[%clk 0:00:15.9]}
52... Ke6 {[%clk 0:00:08.1]} 53. g6 {[%clk 0:00:15.6]} 53... Kf5 {[%clk
0:00:07.3]} 54. Kf7 {[%clk 0:00:15.8]} 1-0

[Event "*** SCC Grand Prix: Titled Tuesday Blitz"]
[Site "Chess.com"]
[Date "2020.08.04"]
[Round "3"]
[White "spacegirl987"]
[Black "vesalhamedinia"]
[Result "0-1"]
[WhiteElo "1945"]
[BlackElo "2286"]
[TimeControl "180+1"]
[EndTime "14:13:42 PDT"]
[Termination "vesalhamedinia won on time"]

1. e4 {[%clk 0:03:00.9]} 1... c5 {[%clk 0:02:59.4]} 2. Nf3 {[%clk 0:02:59.9]}
2... Nc6 {[%clk 0:02:58.8]} 3. d4 {[%clk 0:02:56.5]} 3... cxd4 {[%clk
0:02:58.7]} 4. Nxd4 {[%clk 0:02:56.5]} 4... Nf6 {[%clk 0:02:57.2]} 5. Nc3 {[%clk
0:02:56.5]} 5... e5 {[%clk 0:02:56.7]} 6. Ndb5 {[%clk 0:02:56.6]} 6... d6 {[%clk
0:02:56.8]} 7. Bg5 {[%clk 0:02:56.5]} 7... a6 {[%clk 0:02:56.5]} 8. Na3 {[%clk
0:02:57]} 8... b5 {[%clk 0:02:56.1]} 9. Nd5 {[%clk 0:02:56.2]} 9... Be7 {[%clk
0:02:55.9]} 10. Bxf6 {[%clk 0:02:56.1]} 10... Bxf6 {[%clk 0:02:56.8]} 11. c3
{[%clk 0:02:55.5]} 11... Bg5 {[%clk 0:02:52.6]} 12. Nc2 {[%clk 0:02:55.2]} 12...
Rb8 {[%clk 0:02:52.2]} 13. Nce3 {[%clk 0:02:49.5]} 13... O-O {[%clk 0:02:50.9]}
14. Be2 {[%clk 0:02:47.7]} 14... Be6 {[%clk 0:02:44.5]} 15. O-O {[%clk
0:02:45.8]} 15... a5 {[%clk 0:02:38.3]} 16. Qd3 {[%clk 0:02:37.8]} 16... Ne7
{[%clk 0:02:36.2]} 17. Rad1 {[%clk 0:02:31.3]} 17... g6 {[%clk 0:02:24]} 18.
Nxe7+ {[%clk 0:02:15.8]} 18... Bxe7 {[%clk 0:02:22.2]} 19. Nd5 {[%clk
0:02:14.7]} 19... Bg5 {[%clk 0:02:21.7]} 20. Ne3 {[%clk 0:01:54.2]} 20... Rb6
{[%clk 0:02:14.3]} 21. Bg4 {[%clk 0:01:30.6]} 21... Bxe3 {[%clk 0:01:52.4]} 22.
Bxe6 {[%clk 0:01:21.8]} 22... Bxf2+ {[%clk 0:01:51]} 23. Rxf2 {[%clk 0:01:21.7]}
23... fxe6 {[%clk 0:01:51.9]} 24. Rxf8+ {[%clk 0:01:15.7]} 24... Qxf8 {[%clk
0:01:51.7]} 25. Qe3 {[%clk 0:01:13.4]} 25... Rb7 {[%clk 0:01:46.9]} 26. Qd3
{[%clk 0:01:07.1]} 26... Rb6 {[%clk 0:01:37.2]} 27. Qe3 {[%clk 0:01:05.5]} 27...
Ra6 {[%clk 0:01:37.5]} 28. Qd3 {[%clk 0:01:00]} 28... Qb8 {[%clk 0:01:32.9]} 29.
Rf1 {[%clk 0:00:57]} 29... Ra7 {[%clk 0:01:30.7]} 30. Rf6 {[%clk 0:00:53.8]}
30... Re7 {[%clk 0:01:23.3]} 31. Qe3 {[%clk 0:00:31.6]} 31... b4 {[%clk
0:01:19.3]} 32. c4 {[%clk 0:00:19.8]} 32... Qc7 {[%clk 0:01:17.8]} 33. b3 {[%clk
0:00:18.9]} 33... Kg7 {[%clk 0:01:13.5]} 34. Rf1 {[%clk 0:00:15.2]} 34... Rf7
{[%clk 0:01:05.2]} 35. Rd1 {[%clk 0:00:14.9]} 35... Qc6 {[%clk 0:01:00.2]} 36.
h3 {[%clk 0:00:12.1]} 36... h6 {[%clk 0:00:59.3]} 37. Qd3 {[%clk 0:00:09.5]}
37... Rd7 {[%clk 0:00:58.3]} 38. Kh2 {[%clk 0:00:07.7]} 38... g5 {[%clk
0:00:58.3]} 39. Qf3 {[%clk 0:00:06.5]} 39... Rf7 {[%clk 0:00:57.9]} 40. Qd3
{[%clk 0:00:06.5]} 40... Rf2 {[%clk 0:00:44.6]} 41. Qxd6 {[%clk 0:00:05.2]}
41... Qxe4 {[%clk 0:00:43.3]} 42. Qe7+ {[%clk 0:00:03.7]} 42... Rf7 {[%clk
0:00:41.5]} 43. Qxe6 {[%clk 0:00:02.9]} 43... Qf4+ {[%clk 0:00:41.9]} 44. Kh1
{[%clk 0:00:02.6]} 44... Qg3 {[%clk 0:00:33.3]} 45. Qd5 {[%clk 0:00:02.4]} 45...
Qe3 {[%clk 0:00:27]} 46. Rg1 {[%clk 0:00:01]} 46... Qe2 {[%clk 0:00:24.2]} 0-1

[Event "*** SCC Grand Prix: Titled Tuesday Blitz"]
[Site "Chess.com"]
[Date "2020.08.04"]
[Round "3"]
[White "Shota_Azaladze"]
[Black "OparinGrigoriy"]
[Result "1-0"]
[WhiteElo "2697"]
[BlackElo "2941"]
[TimeControl "180+1"]
[EndTime "14:13:43 PDT"]
[Termination "Shota_Azaladze won by resignation"]

1. Nf3 {[%clk 0:03:00.9]} 1... d5 {[%clk 0:02:41.6]} 2. g3 {[%clk 0:03:00.5]}
2... Nf6 {[%clk 0:02:41.8]} 3. Bg2 {[%clk 0:03:00.8]} 3... c5 {[%clk 0:02:42.5]}
4. O-O {[%clk 0:03:01.3]} 4... g6 {[%clk 0:02:43]} 5. c4 {[%clk 0:02:56.6]} 5...
Bg7 {[%clk 0:02:42.3]} 6. Nc3 {[%clk 0:02:54.5]} 6... O-O {[%clk 0:02:41.3]} 7.
d3 {[%clk 0:02:51.8]} 7... Nc6 {[%clk 0:02:39.1]} 8. cxd5 {[%clk 0:02:50.7]}
8... Nxd5 {[%clk 0:02:40]} 9. Bd2 {[%clk 0:02:50.9]} 9... Nc7 {[%clk 0:02:29.6]}
10. Rc1 {[%clk 0:02:48.2]} 10... b6 {[%clk 0:02:25.5]} 11. Qa4 {[%clk
0:02:34.6]} 11... Bd7 {[%clk 0:02:21.1]} 12. Qh4 {[%clk 0:02:33.8]} 12... e6
{[%clk 0:02:12.9]} 13. Qxd8 {[%clk 0:02:01.4]} 13... Rfxd8 {[%clk 0:02:10.7]}
14. Bf4 {[%clk 0:02:00.5]} 14... Rac8 {[%clk 0:02:10.9]} 15. Nd2 {[%clk
0:01:37.2]} 15... e5 {[%clk 0:01:51.3]} 16. Bg5 {[%clk 0:01:36.4]} 16... f6
{[%clk 0:01:50.9]} 17. Be3 {[%clk 0:01:36.5]} 17... Nd4 {[%clk 0:01:48.1]} 18.
Rfe1 {[%clk 0:01:26.6]} 18... Be6 {[%clk 0:01:44.1]} 19. b3 {[%clk 0:01:25]}
19... Nf5 {[%clk 0:01:37.3]} 20. Nc4 {[%clk 0:01:23]} 20... Nxe3 {[%clk
0:01:30.4]} 21. fxe3 {[%clk 0:01:18.6]} 21... h5 {[%clk 0:01:28.9]} 22. Kf2
{[%clk 0:01:16.9]} 22... Bh6 {[%clk 0:01:29.1]} 23. a4 {[%clk 0:01:16.4]} 23...
Kg7 {[%clk 0:01:26]} 24. Nb5 {[%clk 0:01:12.9]} 24... Nxb5 {[%clk 0:01:19.2]}
25. axb5 {[%clk 0:01:12.4]} 25... Rc7 {[%clk 0:01:19.6]} 26. Ra1 {[%clk
0:01:10.9]} 26... Kh7 {[%clk 0:00:55.8]} 27. Ra4 {[%clk 0:01:06.8]} 27... Rdd7
{[%clk 0:00:53.2]} 28. Bc6 {[%clk 0:01:04.5]} 28... Re7 {[%clk 0:00:52.2]} 29.
Rea1 {[%clk 0:01:01.9]} 29... Bg7 {[%clk 0:00:46.9]} 30. e4 {[%clk 0:01:01.3]}
30... f5 {[%clk 0:00:39]} 31. exf5 {[%clk 0:00:35.6]} 31... gxf5 {[%clk
0:00:38.2]} 32. e4 {[%clk 0:00:34.8]} 32... f4 {[%clk 0:00:36.8]} 33. Kg2 {[%clk
0:00:30.3]} 33... Bh6 {[%clk 0:00:32.3]} 34. Bd5 {[%clk 0:00:25.5]} 34... Bg4
{[%clk 0:00:28.5]} 35. gxf4 {[%clk 0:00:20.1]} 35... exf4 {[%clk 0:00:26.9]} 36.
e5 {[%clk 0:00:18.7]} 36... Bf5 {[%clk 0:00:19.9]} 37. Kf3 {[%clk 0:00:17.6]}
37... Bxd3 {[%clk 0:00:19.5]} 38. Be4+ {[%clk 0:00:17.1]} 38... Bxe4+ {[%clk
0:00:19.9]} 39. Kxe4 {[%clk 0:00:18]} 39... Rcd7 {[%clk 0:00:19]} 40. h4 {[%clk
0:00:15.9]} 40... Rd4+ {[%clk 0:00:15.5]} 41. Kf5 {[%clk 0:00:15.8]} 41... Rdd7
{[%clk 0:00:15.7]} 42. e6 {[%clk 0:00:14.7]} 42... Rc7 {[%clk 0:00:11.2]} 43.
Ne5 {[%clk 0:00:13.6]} 43... Bg7 {[%clk 0:00:11.1]} 44. Nc6 {[%clk 0:00:13.8]}
44... Bxa1 {[%clk 0:00:11]} 45. Nxe7 {[%clk 0:00:12.9]} 45... Rxe7 {[%clk
0:00:06.5]} 46. Rxa1 {[%clk 0:00:12.2]} 46... f3 {[%clk 0:00:07.4]} 47. Kf6
{[%clk 0:00:12.4]} 47... Rg7 {[%clk 0:00:06.2]} 48. e7 {[%clk 0:00:12.3]} 48...
Rg6+ {[%clk 0:00:06.6]} 49. Kf7 {[%clk 0:00:12.5]} 49... Rg7+ {[%clk 0:00:06.9]}
50. Ke6 {[%clk 0:00:12.8]} 50... Rg6+ {[%clk 0:00:07]} 51. Kd7 {[%clk 0:00:13]}
51... Rg7 {[%clk 0:00:07.4]} 52. Rf1 {[%clk 0:00:12.5]} 52... Rf7 {[%clk
0:00:06.1]} 53. Kd8 {[%clk 0:00:12]} 1-0

[Event "*** SCC Grand Prix: Titled Tuesday Blitz"]
[Site "Chess.com"]
[Date "2020.08.04"]
[Round "3"]
[White "Goryachkina"]
[Black "Tactictic"]
[Result "1-0"]
[WhiteElo "2588"]
[BlackElo "2389"]
[TimeControl "180+1"]
[EndTime "14:13:43 PDT"]
[Termination "Goryachkina won by resignation"]

1. e4 {[%clk 0:03:00.9]} 1... c5 {[%clk 0:02:54.3]} 2. Nf3 {[%clk 0:03:00.6]}
2... d6 {[%clk 0:02:54.8]} 3. c3 {[%clk 0:03:00]} 3... Nf6 {[%clk 0:02:54.5]} 4.
Be2 {[%clk 0:03:00]} 4... Nc6 {[%clk 0:02:54.4]} 5. d4 {[%clk 0:02:59.5]} 5...
cxd4 {[%clk 0:02:53.7]} 6. cxd4 {[%clk 0:03:00.4]} 6... d5 {[%clk 0:02:52.8]} 7.
e5 {[%clk 0:02:59.3]} 7... Ne4 {[%clk 0:02:52.8]} 8. O-O {[%clk 0:02:58.6]} 8...
e6 {[%clk 0:02:35.1]} 9. Ne1 {[%clk 0:02:43.1]} 9... f5 {[%clk 0:02:20.8]} 10.
exf6 {[%clk 0:02:29.6]} 10... Qxf6 {[%clk 0:02:18.8]} 11. Be3 {[%clk 0:02:26.5]}
11... Bd6 {[%clk 0:02:13.3]} 12. Nc3 {[%clk 0:02:17.2]} 12... Nxc3 {[%clk
0:02:04.7]} 13. bxc3 {[%clk 0:02:18.1]} 13... O-O {[%clk 0:01:53.9]} 14. Nd3
{[%clk 0:02:17.8]} 14... e5 {[%clk 0:01:48.8]} 15. dxe5 {[%clk 0:02:07.7]} 15...
Nxe5 {[%clk 0:01:49.7]} 16. Nxe5 {[%clk 0:02:00.7]} 16... Qxe5 {[%clk
0:01:47.9]} 17. g3 {[%clk 0:02:00.9]} 17... Bh3 {[%clk 0:01:23.2]} 18. Re1
{[%clk 0:02:00.3]} 18... Rad8 {[%clk 0:01:16.6]} 19. Bf3 {[%clk 0:01:51.8]}
19... Qxc3 {[%clk 0:01:03]} 20. Bxd5+ {[%clk 0:01:37.6]} 20... Kh8 {[%clk
0:01:01.9]} 21. Qb3 {[%clk 0:01:36.8]} 21... Be5 {[%clk 0:00:27.9]} 22. Rac1
{[%clk 0:01:27.9]} 22... Qxb3 {[%clk 0:00:23.4]} 23. Bxb3 {[%clk 0:01:27.6]}
23... b6 {[%clk 0:00:21.9]} 24. Red1 {[%clk 0:01:22.7]} 24... Bg4 {[%clk
0:00:20.3]} 25. Rxd8 {[%clk 0:01:19.8]} 25... Rxd8 {[%clk 0:00:21.2]} 26. f4
{[%clk 0:01:19.9]} 26... Bf6 {[%clk 0:00:20.5]} 27. Kf2 {[%clk 0:01:18.9]} 27...
h6 {[%clk 0:00:19.3]} 28. Rc7 {[%clk 0:01:14]} 28... Rd7 {[%clk 0:00:17.2]} 29.
Rc8+ {[%clk 0:01:09.9]} 29... Rd8 {[%clk 0:00:17.5]} 30. Rxd8+ {[%clk
0:01:07.1]} 30... Bxd8 {[%clk 0:00:18.4]} 31. Bd4 {[%clk 0:01:07.5]} 31... Bf6
{[%clk 0:00:16.1]} 32. Ke3 {[%clk 0:01:07.1]} 32... Bxd4+ {[%clk 0:00:15]} 33.
Kxd4 {[%clk 0:01:08]} 33... g5 {[%clk 0:00:15]} 34. fxg5 {[%clk 0:00:46.5]}
34... hxg5 {[%clk 0:00:15.9]} 35. Kd5 {[%clk 0:00:46.1]} 35... Kg7 {[%clk
0:00:16.1]} 36. Kc6 {[%clk 0:00:46]} 36... Bf3+ {[%clk 0:00:16.1]} 37. Kc7
{[%clk 0:00:45.8]} 37... b5 {[%clk 0:00:15.8]} 38. Kd6 {[%clk 0:00:35.5]} 38...
Kf6 {[%clk 0:00:14.6]} 39. Kc5 {[%clk 0:00:35.2]} 39... Be2 {[%clk 0:00:14.7]}
40. Bd5 {[%clk 0:00:31.9]} 40... Ke5 {[%clk 0:00:14.5]} 41. Bc6 {[%clk
0:00:31.5]} 41... Bc4 {[%clk 0:00:14.2]} 42. a3 {[%clk 0:00:18.5]} 42... a6
{[%clk 0:00:14.5]} 43. h4 {[%clk 0:00:17.2]} 43... gxh4 {[%clk 0:00:14.5]} 44.
gxh4 {[%clk 0:00:18.1]} 44... Kf4 {[%clk 0:00:15]} 45. Bb7 {[%clk 0:00:18.3]}
45... Kg4 {[%clk 0:00:13.4]} 46. Bxa6 {[%clk 0:00:18.3]} 46... Kxh4 {[%clk
0:00:13.8]} 47. Bxb5 {[%clk 0:00:18.5]} 47... Bb3 {[%clk 0:00:14.3]} 48. Kb4
{[%clk 0:00:18.6]} 48... Bd1 {[%clk 0:00:14.5]} 49. Ba4 {[%clk 0:00:18.9]} 49...
Be2 {[%clk 0:00:14.6]} 50. Bb3 {[%clk 0:00:18.1]} 50... Bf3 {[%clk 0:00:14.3]}
51. a4 {[%clk 0:00:18]} 51... Kg5 {[%clk 0:00:14.1]} 52. a5 {[%clk 0:00:18.3]}
52... Bb7 {[%clk 0:00:13.4]} 53. Kc5 {[%clk 0:00:18.4]} 53... Ba6 {[%clk
0:00:13.1]} 54. Bc4 {[%clk 0:00:17.8]} 54... Bc8 {[%clk 0:00:13.1]} 55. Kb6
{[%clk 0:00:18.1]} 55... Kf6 {[%clk 0:00:12.9]} 56. Kc7 {[%clk 0:00:18.3]} 56...
Bg4 {[%clk 0:00:11.5]} 57. a6 {[%clk 0:00:18.5]} 57... Bf3 {[%clk 0:00:11.1]}
58. a7 {[%clk 0:00:18.6]} 58... Ba8 {[%clk 0:00:10.6]} 59. Ba6 {[%clk
0:00:18.5]} 59... Ke5 {[%clk 0:00:11.3]} 60. Bb7 {[%clk 0:00:18.7]} 1-0

[Event "*** SCC Grand Prix: Titled Tuesday Blitz"]
[Site "Chess.com"]
[Date "2020.08.04"]
[Round "3"]
[White "1f3_2g41-0"]
[Black "BlueWizzard"]
[Result "0-1"]
[WhiteElo "2440"]
[BlackElo "2703"]
[TimeControl "180+1"]
[EndTime "14:13:50 PDT"]
[Termination "BlueWizzard won by resignation"]

1. e4 {[%clk 0:03:00.9]} 1... c5 {[%clk 0:03:00.3]} 2. Nf3 {[%clk 0:03:00.5]}
2... e6 {[%clk 0:03:01.2]} 3. d4 {[%clk 0:03:00.4]} 3... cxd4 {[%clk 0:03:02.1]}
4. Nxd4 {[%clk 0:03:01.3]} 4... Bc5 {[%clk 0:03:02.3]} 5. Nc3 {[%clk 0:02:58.1]}
5... Nc6 {[%clk 0:03:01]} 6. Be3 {[%clk 0:02:57.6]} 6... Qb6 {[%clk 0:02:57.9]}
7. Na4 {[%clk 0:02:51.6]} 7... Qa5+ {[%clk 0:02:57.2]} 8. c3 {[%clk 0:02:51.8]}
8... Be7 {[%clk 0:02:44.9]} 9. b4 {[%clk 0:02:39]} 9... Nxb4 {[%clk 0:02:35.5]}
10. cxb4 {[%clk 0:02:30.3]} 10... Bxb4+ {[%clk 0:02:35.2]} 11. Ke2 {[%clk
0:02:20.2]} 11... Nf6 {[%clk 0:02:35.5]} 12. f3 {[%clk 0:02:15.8]} 12... O-O
{[%clk 0:02:24.1]} 13. Kf2 {[%clk 0:02:08]} 13... d5 {[%clk 0:02:22.4]} 14. e5
{[%clk 0:02:04.9]} 14... Bd7 {[%clk 0:02:20]} 15. Nb2 {[%clk 0:01:53.6]} 15...
Ne8 {[%clk 0:02:18.9]} 16. Nd3 {[%clk 0:01:52.4]} 16... Be7 {[%clk 0:02:15.3]}
17. Be2 {[%clk 0:01:50.2]} 17... f6 {[%clk 0:02:12.7]} 18. g3 {[%clk 0:01:41.1]}
18... Nc7 {[%clk 0:02:04.7]} 19. Kg2 {[%clk 0:01:39.6]} 19... Nb5 {[%clk
0:02:01.4]} 20. Nxb5 {[%clk 0:01:26]} 20... Bxb5 {[%clk 0:02:02.3]} 21. exf6
{[%clk 0:01:23.2]} 21... Bxf6 {[%clk 0:01:54.7]} 22. Rb1 {[%clk 0:01:22.5]}
22... a6 {[%clk 0:01:54.7]} 23. Qd2 {[%clk 0:01:14.9]} 23... Bc3 {[%clk
0:01:52.4]} 24. Qd1 {[%clk 0:01:06.2]} 24... Qxa2 {[%clk 0:01:46]} 25. Rf1
{[%clk 0:01:05.7]} 25... d4 {[%clk 0:01:24.1]} 26. Bf4 {[%clk 0:00:54]} 26...
Ba4 {[%clk 0:01:23.4]} 27. Nc1 {[%clk 0:00:49.4]} 27... Bxd1 {[%clk 0:01:10]}
28. Nxa2 {[%clk 0:00:49.1]} 28... Bxe2 {[%clk 0:01:10.4]} 29. Rf2 {[%clk
0:00:49]} 29... Bb5 {[%clk 0:01:08.7]} 30. Nxc3 {[%clk 0:00:48.3]} 30... dxc3
{[%clk 0:01:09.6]} 31. Rc1 {[%clk 0:00:48.4]} 31... Rac8 {[%clk 0:01:05.5]} 32.
Rfc2 {[%clk 0:00:48.4]} 32... Rfd8 {[%clk 0:00:54.1]} 33. Rxc3 {[%clk
0:00:47.9]} 33... Rxc3 {[%clk 0:00:53.6]} 34. Rxc3 {[%clk 0:00:48.8]} 34... Bc6
{[%clk 0:00:52.5]} 35. Re3 {[%clk 0:00:48.3]} 35... Kf7 {[%clk 0:00:52.3]} 36.
g4 {[%clk 0:00:46]} 36... a5 {[%clk 0:00:50.9]} 37. Ra3 {[%clk 0:00:41.2]} 37...
a4 {[%clk 0:00:50.6]} 38. Kg3 {[%clk 0:00:39]} 38... Rd1 {[%clk 0:00:47.9]} 39.
h4 {[%clk 0:00:36.4]} 39... Rd4 {[%clk 0:00:43]} 40. Be5 {[%clk 0:00:34.5]}
40... Rc4 {[%clk 0:00:43.1]} 41. Rd3 {[%clk 0:00:32.9]} 41... Bd5 {[%clk
0:00:43.4]} 42. h5 {[%clk 0:00:24]} 42... b5 {[%clk 0:00:42.7]} 43. Rd4 {[%clk
0:00:21.3]} 43... Rc2 {[%clk 0:00:23.5]} 44. Rf4+ {[%clk 0:00:19.7]} 44... Kg8
{[%clk 0:00:23.9]} 45. g5 {[%clk 0:00:12.3]} 45... Rc4 {[%clk 0:00:12.6]} 46.
Rxc4 {[%clk 0:00:09.6]} 46... Bxc4 {[%clk 0:00:13.5]} 47. Bd6 {[%clk 0:00:09.6]}
47... Kf7 {[%clk 0:00:13.3]} 48. Kf4 {[%clk 0:00:09]} 48... h6 {[%clk
0:00:13.8]} 49. g6+ {[%clk 0:00:06.2]} 49... Ke8 {[%clk 0:00:12.9]} 50. Ke5
{[%clk 0:00:05.8]} 50... Be2 {[%clk 0:00:12.8]} 51. Kxe6 {[%clk 0:00:04.1]}
51... Bxf3 {[%clk 0:00:13.1]} 52. Be5 {[%clk 0:00:03.2]} 52... Kf8 {[%clk
0:00:13.5]} 53. Bd6+ {[%clk 0:00:03.1]} 53... Kg8 {[%clk 0:00:13.5]} 54. Ke5
{[%clk 0:00:02.2]} 54... Bxh5 {[%clk 0:00:14.1]} 55. Kf5 {[%clk 0:00:02.5]}
55... Bd1 {[%clk 0:00:13.9]} 56. Kf4 {[%clk 0:00:02.9]} 56... Bc2 {[%clk
0:00:14.2]} 57. Kg4 {[%clk 0:00:02.4]} 57... Bxg6 {[%clk 0:00:14.7]} 58. Kf4
{[%clk 0:00:03.3]} 58... Kf7 {[%clk 0:00:15]} 0-1